[Event "Titled Tuesday Blitz December 06 Early 2022"]
[White "Alahakoon, Isuru"]
[Black "Tarlabasi, Emirhan"]
[WhiteFideId "9900993"]
[BlackFideId "6350275"]
[WhiteElo "2004"]
[BlackElo "2200"]
[Result "0-1"]
[Round "03"]
[TimeControl "180+1"]
[Date "2022.12.07"]
[WhiteClock "0:00:15"]
[BlackClock "0:01:02"]

1. Nf3 {[%clk 0:03:00]}  c5 {[%clk 0:03:00]} 2. c3 {[%clk 0:03:00]}  Nf6 {[%clk 0:03:00]} 3. d4 {[%clk 0:03:00]}  e6 {[%clk 0:02:46]} 4. Be3 {[%clk 0:02:59]}  Qb6 {[%clk 0:02:44]} 5. Qc2 {[%clk 0:02:52]}  Nc6 {[%clk 0:02:39]} 6. Nbd2 {[%clk 0:02:48]}  d5 {[%clk 0:02:36]} 7. dxc5 {[%clk 0:02:45]}  Bxc5 {[%clk 0:02:34]} 8. Bxc5 {[%clk 0:02:45]}  Qxc5 {[%clk 0:02:35]} 9. e4 {[%clk 0:02:42]}  d4 {[%clk 0:02:30]} 10. Nb3 {[%clk 0:02:40]}  Qb6 {[%clk 0:02:11]} 11. Nbxd4 {[%clk 0:02:37]}  Bd7 {[%clk 0:02:11]} 12. Bd3 {[%clk 0:02:35]}  O-O {[%clk 0:02:10]} 13. e5 {[%clk 0:02:27]}  Ng4 {[%clk 0:02:04]} 14. Bxh7+ {[%clk 0:02:25]}  Kh8 {[%clk 0:02:04]} 15. Qe4 {[%clk 0:02:19]}  f5 {[%clk 0:02:03]} 16. exf6 {[%clk 0:02:09]}  Nxf6 {[%clk 0:02:03]} 17. Qh4 {[%clk 0:02:10]}  Nxd4 {[%clk 0:01:49]} 18. Bg6+ {[%clk 0:02:00]}  Kg8 {[%clk 0:01:49]} 19. Nxd4 {[%clk 0:01:59]}  Qxb2 {[%clk 0:01:47]} 20. O-O {[%clk 0:01:56]}  Qxc3 {[%clk 0:01:47]} 21. Rac1 {[%clk 0:01:48]}  Qb4 {[%clk 0:01:38]} 22. Rb1 {[%clk 0:01:42]}  Qa4 {[%clk 0:01:30]} 23. Rxb7 {[%clk 0:01:33]}  Rab8 {[%clk 0:01:30]} 24. Rc7 {[%clk 0:01:12]}  Rfc8 {[%clk 0:01:30]} 25. Rxc8+ {[%clk 0:01:10]}  Rxc8 {[%clk 0:01:31]} 26. h3 {[%clk 0:00:42]}  Rc4 {[%clk 0:01:28]} 27. Qg3 {[%clk 0:00:30]}  Rxd4 {[%clk 0:01:24]} 28. Qb8+ {[%clk 0:00:29]}  Be8 {[%clk 0:01:25]} 29. Rc1 {[%clk 0:00:24]}  Rd1+ {[%clk 0:01:21]} 30. Rxd1 {[%clk 0:00:24]}  Qxd1+ {[%clk 0:01:22]} 31. Kh2 {[%clk 0:00:24]}  Qd7 {[%clk 0:01:13]} 32. g4 {[%clk 0:00:22]}  Kf8 {[%clk 0:01:11]} 33. g5 {[%clk 0:00:22]}  Nd5 {[%clk 0:01:06]} 34. h4 {[%clk 0:00:19]}  Qc7+ {[%clk 0:01:02]} 35. Kg2 {[%clk 0:00:15]}  Qxb8 {[%clk 0:01:02]} 0-1


[Site "https://www.chess.com"]

[Event "Titled Tuesday Blitz December 06 Early 2022"]
[White "Alex_Sahakyan2006"]
[Black "Sztokbant, Bernardo Vainzoff"]
[BlackFideId "2115956"]
[WhiteElo "2336"]
[BlackElo "2222"]
[Result "1/2-1/2"]
[Round "03"]
[TimeControl "180+1"]
[Date "2022.12.07"]
[WhiteClock "0:01:02"]
[BlackClock "0:00:01"]

1. e4 {[%clk 0:03:00]}  c5 {[%clk 0:02:59]} 2. Nf3 {[%clk 0:03:00]}  Nc6 {[%clk 0:02:58]} 3. Bb5 {[%clk 0:02:59]}  e6 {[%clk 0:02:58]} 4. O-O {[%clk 0:02:58]}  Nge7 {[%clk 0:02:57]} 5. Re1 {[%clk 0:02:58]}  a6 {[%clk 0:02:57]} 6. Bf1 {[%clk 0:02:56]}  e5 {[%clk 0:02:54]} 7. b4 {[%clk 0:02:51]}  cxb4 {[%clk 0:02:53]} 8. a3 {[%clk 0:02:51]}  b3 {[%clk 0:02:49]} 9. cxb3 {[%clk 0:02:49]}  g6 {[%clk 0:02:48]} 10. Bb2 {[%clk 0:02:48]}  Bg7 {[%clk 0:02:48]} 11. d4 {[%clk 0:02:48]}  d6 {[%clk 0:02:46]} 12. dxe5 {[%clk 0:02:47]}  dxe5 {[%clk 0:02:45]} 13. Qxd8+ {[%clk 0:02:48]}  Kxd8 {[%clk 0:02:45]} 14. Nc3 {[%clk 0:02:43]}  Be6 {[%clk 0:02:41]} 15. Ng5 {[%clk 0:02:42]}  Bxb3 {[%clk 0:02:40]} 16. Nd5 {[%clk 0:02:39]}  Nxd5 {[%clk 0:02:16]} 17. Nxf7+ {[%clk 0:02:31]}  Ke7 {[%clk 0:02:11]} 18. exd5 {[%clk 0:02:30]}  Kxf7 {[%clk 0:01:58]} 19. dxc6 {[%clk 0:02:29]}  bxc6 {[%clk 0:01:59]} 20. Bxe5 {[%clk 0:02:29]}  Bxe5 {[%clk 0:01:41]} 21. Rxe5 {[%clk 0:02:30]}  Rhe8 {[%clk 0:01:37]} 22. Ra5 {[%clk 0:02:21]}  Re7 {[%clk 0:01:28]} 23. Rxa6 {[%clk 0:02:18]}  Rxa6 {[%clk 0:01:24]} 24. Bxa6 {[%clk 0:02:18]}  Ra7 {[%clk 0:01:18]} 25. Rb1 {[%clk 0:01:57]}  Rxa6 {[%clk 0:01:07]} 26. Rxb3 {[%clk 0:01:57]}  Ke6 {[%clk 0:01:06]} 27. Kf1 {[%clk 0:01:54]}  c5 {[%clk 0:01:05]} 28. Ke2 {[%clk 0:01:52]}  Kd5 {[%clk 0:01:00]} 29. Rb7 {[%clk 0:01:50]}  Rxa3 {[%clk 0:00:51]} 30. Rxh7 {[%clk 0:01:50]}  Ra2+ {[%clk 0:00:46]} 31. Ke3 {[%clk 0:01:49]}  Ra3+ {[%clk 0:00:46]} 32. Kf4 {[%clk 0:01:49]}  Ra2 {[%clk 0:00:42]} 33. Ke3 {[%clk 0:01:47]}  Ra3+ {[%clk 0:00:42]} 34. Kf4 {[%clk 0:01:47]}  Ra2 {[%clk 0:00:42]} 35. Kg5 {[%clk 0:01:23]}  Rxf2 {[%clk 0:00:40]} 36. g4 {[%clk 0:01:23]}  c4 {[%clk 0:00:35]} 37. Kxg6 {[%clk 0:01:23]}  c3 {[%clk 0:00:29]} 38. Rc7 {[%clk 0:01:22]}  Kd4 {[%clk 0:00:17]} 39. h4 {[%clk 0:01:22]}  Kd3 {[%clk 0:00:12]} 40. h5 {[%clk 0:01:21]}  Rf4 {[%clk 0:00:12]} 41. Rxc3+ {[%clk 0:01:12]}  Kxc3 {[%clk 0:00:12]} 42. g5 {[%clk 0:01:13]}  Kd4 {[%clk 0:00:10]} 43. h6 {[%clk 0:01:13]}  Ke5 {[%clk 0:00:09]} 44. h7 {[%clk 0:01:11]}  Rh4 {[%clk 0:00:09]} 45. Kg7 {[%clk 0:01:10]}  Kf5 {[%clk 0:00:04]} 46. g6 {[%clk 0:01:11]}  Rh3 {[%clk 0:00:02]} 47. Kf7 {[%clk 0:01:08]}  Rh4 {[%clk 0:00:01]} 48. Kg7 {[%clk 0:01:06]}  Rh5 {[%clk 0:00:01]} 49. Kf7 {[%clk 0:01:03]}  Rh4 {[%clk 0:00:01]} 50. g7 {[%clk 0:01:00]}  Rxh7 {[%clk 0:00:01]} 51. Kf8 {[%clk 0:01:01]}  Rxg7 {[%clk 0:00:01]} 52. Kxg7 {[%clk 0:01:02]} 1/2-1/2


[Site "https://www.chess.com"]

[Event "Titled Tuesday Blitz December 06 Early 2022"]
[White "Aloma Vidal, Robert"]
[Black "Omariev, Maksim"]
[WhiteFideId "2260409"]
[BlackFideId "4193423"]
[WhiteElo "2435"]
[BlackElo "2447"]
[Result "0-1"]
[Round "03"]
[TimeControl "180+1"]
[Date "2022.12.07"]
[WhiteClock "0:00:10"]
[BlackClock "0:00:04"]

1. e4 {[%clk 0:03:00]}  c5 {[%clk 0:02:59]} 2. c3 {[%clk 0:03:00]}  Nf6 {[%clk 0:02:56]} 3. e5 {[%clk 0:03:00]}  Nd5 {[%clk 0:02:56]} 4. Nf3 {[%clk 0:03:00]}  e6 {[%clk 0:02:54]} 5. Bc4 {[%clk 0:02:58]}  Nb6 {[%clk 0:02:42]} 6. Bb3 {[%clk 0:02:58]}  c4 {[%clk 0:02:43]} 7. Bc2 {[%clk 0:02:58]}  g5 {[%clk 0:02:34]} 8. d4 {[%clk 0:02:46]}  cxd3 {[%clk 0:02:29]} 9. Qxd3 {[%clk 0:02:45]}  g4 {[%clk 0:02:26]} 10. Ng5 {[%clk 0:02:44]}  Nc6 {[%clk 0:02:21]} 11. Ne4 {[%clk 0:02:28]}  Nxe5 {[%clk 0:02:18]} 12. Qd4 {[%clk 0:02:16]}  Bg7 {[%clk 0:01:57]} 13. Nd6+ {[%clk 0:01:59]}  Kf8 {[%clk 0:01:56]} 14. Qc5 {[%clk 0:01:44]}  Qe7 {[%clk 0:01:39]} 15. O-O {[%clk 0:01:42]}  Nbc4 {[%clk 0:01:23]} 16. Rd1 {[%clk 0:01:26]}  Nxd6 {[%clk 0:01:02]} 17. Rxd6 {[%clk 0:01:19]}  Nc4 {[%clk 0:00:41]} 18. Qxc4 {[%clk 0:01:15]}  Qxd6 {[%clk 0:00:41]} 19. Qxg4 {[%clk 0:01:15]}  h5 {[%clk 0:00:37]} 20. Qf3 {[%clk 0:01:12]}  Qc6 {[%clk 0:00:33]} 21. Qe2 {[%clk 0:00:42]}  d5 {[%clk 0:00:25]} 22. Nd2 {[%clk 0:00:43]}  e5 {[%clk 0:00:23]} 23. Nf3 {[%clk 0:00:43]}  Bg4 {[%clk 0:00:12]} 24. h3 {[%clk 0:00:43]}  Bxf3 {[%clk 0:00:03]} 25. Qxf3 {[%clk 0:00:44]}  e4 {[%clk 0:00:03]} 26. Qe2 {[%clk 0:00:39]}  f5 {[%clk 0:00:03]} 27. Bf4 {[%clk 0:00:38]}  Kf7 {[%clk 0:00:03]} 28. Rd1 {[%clk 0:00:38]}  Bf6 {[%clk 0:00:03]} 29. Rxd5 {[%clk 0:00:37]}  Kg6 {[%clk 0:00:02]} 30. c4 {[%clk 0:00:32]}  Rad8 {[%clk 0:00:03]} 31. Rxd8 {[%clk 0:00:17]}  Rxd8 {[%clk 0:00:03]} 32. b3 {[%clk 0:00:16]}  h4 {[%clk 0:00:03]} 33. Bd1 {[%clk 0:00:15]}  Kg7 {[%clk 0:00:02]} 34. Bc2 {[%clk 0:00:13]}  Qd7 {[%clk 0:00:01]} 35. Qh5 {[%clk 0:00:13]}  Rh8 {[%clk 0:00:01]} 36. Qe2 {[%clk 0:00:12]}  Qd4 {[%clk 0:00:01]} 37. a4 {[%clk 0:00:10]}  Be5 {[%clk 0:00:02]} 38. Bxe5+ {[%clk 0:00:09]}  Qxe5 {[%clk 0:00:03]} 39. Qd1 {[%clk 0:00:09]}  Qf6 {[%clk 0:00:02]} 40. Qd7+ {[%clk 0:00:09]}  Kg6 {[%clk 0:00:02]} 41. Bd1 {[%clk 0:00:09]}  Rd8 {[%clk 0:00:02]} 42. Qxb7 {[%clk 0:00:08]}  Rxd1+ {[%clk 0:00:02]} 43. Kh2 {[%clk 0:00:09]}  Qd6+ {[%clk 0:00:02]} 44. g3 {[%clk 0:00:10]}  hxg3+ {[%clk 0:00:03]} 45. Kg2 {[%clk 0:00:10]}  Rd2 {[%clk 0:00:03]} 46. Qc8 {[%clk 0:00:09]}  Rxf2+ {[%clk 0:00:03]} 47. Kg1 {[%clk 0:00:10]}  Qd1# {[%clk 0:00:04]} 0-1


[Site "https://www.chess.com"]

[Event "Titled Tuesday Blitz December 06 Early 2022"]
[White "Aravindh, Chithambaram VR."]
[Black "Barria Zuniga, Daniel"]
[WhiteFideId "5072786"]
[BlackFideId "3400816"]
[WhiteElo "2586"]
[BlackElo "2414"]
[Result "1-0"]
[Round "03"]
[TimeControl "180+1"]
[Date "2022.12.06"]
[WhiteClock "0:00:03"]
[BlackClock "0:00:01"]

1. e4 {[%clk 0:02:59]}  c5 {[%clk 0:02:52]} 2. Nf3 {[%clk 0:02:59]}  Nc6 {[%clk 0:02:51]} 3. d4 {[%clk 0:02:56]}  cxd4 {[%clk 0:02:51]} 4. Nxd4 {[%clk 0:02:57]}  e6 {[%clk 0:02:50]} 5. Nc3 {[%clk 0:02:55]}  Qc7 {[%clk 0:02:49]} 6. Be2 {[%clk 0:02:54]}  a6 {[%clk 0:02:48]} 7. Nxc6 {[%clk 0:02:55]}  dxc6 {[%clk 0:02:44]} 8. O-O {[%clk 0:02:45]}  e5 {[%clk 0:02:43]} 9. f4 {[%clk 0:02:40]}  Bd6 {[%clk 0:02:42]} 10. f5 {[%clk 0:02:35]}  Nf6 {[%clk 0:02:31]} 11. Be3 {[%clk 0:02:29]}  b5 {[%clk 0:02:27]} 12. Bf3 {[%clk 0:02:20]}  Bb7 {[%clk 0:02:26]} 13. a4 {[%clk 0:02:18]}  O-O {[%clk 0:02:18]} 14. g4 {[%clk 0:02:14]}  Nd7 {[%clk 0:02:17]} 15. g5 {[%clk 0:02:05]}  Bc5 {[%clk 0:02:13]} 16. Qe1 {[%clk 0:01:54]}  Qb6 {[%clk 0:02:08]} 17. Bf2 {[%clk 0:01:41]}  Rfd8 {[%clk 0:02:01]} 18. Kh1 {[%clk 0:01:35]}  Bxf2 {[%clk 0:02:00]} 19. Rxf2 {[%clk 0:01:36]}  Qc5 {[%clk 0:01:36]} 20. Rg2 {[%clk 0:01:21]}  Nf8 {[%clk 0:01:22]} 21. Nd1 {[%clk 0:00:41]}  Rd6 {[%clk 0:01:16]} 22. Ne3 {[%clk 0:00:41]}  Rad8 {[%clk 0:01:15]} 23. h4 {[%clk 0:00:30]}  Bc8 {[%clk 0:01:09]} 24. Kh2 {[%clk 0:00:27]}  Rd4 {[%clk 0:01:08]} 25. Ng4 {[%clk 0:00:18]}  Rxa4 {[%clk 0:01:01]} 26. Rxa4 {[%clk 0:00:18]}  bxa4 {[%clk 0:01:02]} 27. Qg3 {[%clk 0:00:18]}  a3 {[%clk 0:00:56]} 28. bxa3 {[%clk 0:00:17]}  Qxa3 {[%clk 0:00:57]} 29. Nxe5 {[%clk 0:00:17]}  Qd6 {[%clk 0:00:28]} 30. Nc4 {[%clk 0:00:12]}  Qxg3+ {[%clk 0:00:27]} 31. Kxg3 {[%clk 0:00:13]}  Rd4 {[%clk 0:00:23]} 32. Na5 {[%clk 0:00:11]}  Bd7 {[%clk 0:00:16]} 33. Nb3 {[%clk 0:00:08]}  Rc4 {[%clk 0:00:13]} 34. Rd2 {[%clk 0:00:08]}  Rc3 {[%clk 0:00:11]} 35. Kf4 {[%clk 0:00:08]}  c5 {[%clk 0:00:11]} 36. e5 {[%clk 0:00:07]}  Rc4+ {[%clk 0:00:08]} 37. Kg3 {[%clk 0:00:06]}  Bxf5 {[%clk 0:00:07]} 38. Rd8 {[%clk 0:00:03]}  Bxc2 {[%clk 0:00:03]} 39. Na5 {[%clk 0:00:03]}  Rc3 {[%clk 0:00:02]} 40. Nc6 {[%clk 0:00:03]}  g6 {[%clk 0:00:01]} 41. Kf2 {[%clk 0:00:03]} 1-0


[Site "https://www.chess.com"]

[Event "Titled Tuesday Blitz December 06 Early 2022"]
[White "Atakishiyev, Elmar"]
[Black "Lenderman, Aleksandr"]
[WhiteFideId "13410547"]
[BlackFideId "2021285"]
[WhiteElo "2193"]
[BlackElo "2607"]
[Result "0-1"]
[Round "03"]
[TimeControl "180+1"]
[Date "2022.12.06"]
[WhiteClock "0:00:05"]
[BlackClock "0:01:11"]

1. d4 {[%clk 0:02:57]}  e6 {[%clk 0:02:59]} 2. Nf3 {[%clk 0:02:56]}  c5 {[%clk 0:02:58]} 3. g3 {[%clk 0:02:54]}  b6 {[%clk 0:02:57]} 4. Bg2 {[%clk 0:02:54]}  Bb7 {[%clk 0:02:57]} 5. c4 {[%clk 0:02:28]}  cxd4 {[%clk 0:02:56]} 6. Qxd4 {[%clk 0:02:29]}  Nc6 {[%clk 0:02:54]} 7. Qd1 {[%clk 0:02:26]}  Ne5 {[%clk 0:02:53]} 8. Nbd2 {[%clk 0:02:22]}  Nf6 {[%clk 0:02:47]} 9. O-O {[%clk 0:02:21]}  Ng6 {[%clk 0:02:46]} 10. b3 {[%clk 0:02:20]}  Bc5 {[%clk 0:02:44]} 11. Bb2 {[%clk 0:02:19]}  O-O {[%clk 0:02:44]} 12. a3 {[%clk 0:02:18]}  a5 {[%clk 0:02:44]} 13. Qc2 {[%clk 0:02:11]}  Qe7 {[%clk 0:02:43]} 14. Rfd1 {[%clk 0:02:10]}  e5 {[%clk 0:02:26]} 15. e3 {[%clk 0:01:56]}  d5 {[%clk 0:02:19]} 16. cxd5 {[%clk 0:01:51]}  Bxd5 {[%clk 0:02:17]} 17. Nc4 {[%clk 0:01:51]}  Be4 {[%clk 0:02:12]} 18. Qe2 {[%clk 0:01:51]}  Nd7 {[%clk 0:01:58]} 19. Nfxe5 {[%clk 0:01:24]}  Ndxe5 {[%clk 0:01:57]} 20. Bxe4 {[%clk 0:01:24]}  Rae8 {[%clk 0:01:57]} 21. Nxe5 {[%clk 0:01:23]}  Nxe5 {[%clk 0:01:58]} 22. Bg2 {[%clk 0:01:23]}  f5 {[%clk 0:01:51]} 23. Rd5 {[%clk 0:01:22]}  Ng4 {[%clk 0:01:50]} 24. h3 {[%clk 0:01:15]}  Nxf2 {[%clk 0:01:50]} 25. Kxf2 {[%clk 0:01:00]}  f4 {[%clk 0:01:51]} 26. gxf4 {[%clk 0:00:44]}  Bxe3+ {[%clk 0:01:49]} 27. Kf1 {[%clk 0:00:19]}  Rxf4+ {[%clk 0:01:48]} 28. Bf3 {[%clk 0:00:19]}  Ref8 {[%clk 0:01:46]} 29. Kg2 {[%clk 0:00:20]}  Rxf3 {[%clk 0:01:40]} 30. Qxf3 {[%clk 0:00:21]}  Rxf3 {[%clk 0:01:40]} 31. Kxf3 {[%clk 0:00:22]}  Bc5 {[%clk 0:01:31]} 32. Re5 {[%clk 0:00:19]}  Qf7+ {[%clk 0:01:31]} 33. Ke4 {[%clk 0:00:19]}  Qxb3 {[%clk 0:01:30]} 34. Rxc5 {[%clk 0:00:15]}  bxc5 {[%clk 0:01:28]} 35. Be5 {[%clk 0:00:16]}  Qc4+ {[%clk 0:01:26]} 36. Ke3 {[%clk 0:00:14]}  Qe6 {[%clk 0:01:24]} 37. Ke4 {[%clk 0:00:14]}  Qxh3 {[%clk 0:01:22]} 38. Rg1 {[%clk 0:00:10]}  Qd7 {[%clk 0:01:18]} 39. Rg3 {[%clk 0:00:08]}  h5 {[%clk 0:01:14]} 40. Rg5 {[%clk 0:00:07]}  Qf7 {[%clk 0:01:12]} 41. Rf5 {[%clk 0:00:05]}  Qg6 {[%clk 0:01:11]} 42. Kf4 {[%clk 0:00:05]}  Qg4+ {[%clk 0:01:11]} 0-1


[Site "https://www.chess.com"]

[Event "Titled Tuesday Blitz December 06 Early 2022"]
[White "Bashirli, Saadat"]
[Black "Rodchenkov, Sergey D."]
[WhiteFideId "13429990"]
[BlackFideId "4168712"]
[WhiteElo "1408"]
[BlackElo "2277"]
[Result "0-1"]
[Round "03"]
[TimeControl "180+1"]
[Date "2022.12.07"]
[WhiteClock "0:00:50"]
[BlackClock "0:01:28"]

1. d4 {[%clk 0:03:00]}  d5 {[%clk 0:02:58]} 2. c4 {[%clk 0:03:00]}  dxc4 {[%clk 0:02:59]} 3. Nf3 {[%clk 0:02:59]}  Nf6 {[%clk 0:02:58]} 4. e3 {[%clk 0:02:56]}  a6 {[%clk 0:02:58]} 5. Bxc4 {[%clk 0:02:55]}  e6 {[%clk 0:02:59]} 6. Nc3 {[%clk 0:02:55]}  b5 {[%clk 0:02:58]} 7. Bd3 {[%clk 0:02:53]}  Bb7 {[%clk 0:02:58]} 8. O-O {[%clk 0:02:53]}  Nbd7 {[%clk 0:02:58]} 9. Re1 {[%clk 0:02:53]}  c5 {[%clk 0:02:58]} 10. e4 {[%clk 0:02:47]}  cxd4 {[%clk 0:02:56]} 11. Nxd4 {[%clk 0:02:48]}  Bc5 {[%clk 0:02:55]} 12. Bc2 {[%clk 0:02:43]}  O-O {[%clk 0:02:53]} 13. Bg5 {[%clk 0:02:41]}  h6 {[%clk 0:02:51]} 14. Bh4 {[%clk 0:02:35]}  Ne5 {[%clk 0:02:49]} 15. Nb3 {[%clk 0:02:29]}  Bd6 {[%clk 0:02:41]} 16. Qd2 {[%clk 0:02:11]}  Qe7 {[%clk 0:02:39]} 17. Rad1 {[%clk 0:02:09]}  Rad8 {[%clk 0:02:39]} 18. Qe2 {[%clk 0:02:05]}  Ng6 {[%clk 0:02:20]} 19. Bg3 {[%clk 0:01:45]}  Bxg3 {[%clk 0:02:20]} 20. hxg3 {[%clk 0:01:44]}  Nd7 {[%clk 0:02:07]} 21. Nd4 {[%clk 0:01:29]}  Nb6 {[%clk 0:02:01]} 22. e5 {[%clk 0:01:26]}  Kh7 {[%clk 0:01:53]} 23. Qe4 {[%clk 0:01:25]}  Bxe4 {[%clk 0:01:53]} 24. Bxe4 {[%clk 0:01:23]}  Nc4 {[%clk 0:01:52]} 25. Kh2 {[%clk 0:01:12]}  Qc5 {[%clk 0:01:48]} 26. Nb3 {[%clk 0:01:05]}  Rxd1 {[%clk 0:01:45]} 27. Nxc5 {[%clk 0:01:02]}  Rxe1 {[%clk 0:01:45]} 28. Nxa6 {[%clk 0:01:00]}  Nxb2 {[%clk 0:01:39]} 29. Bxg6+ {[%clk 0:00:58]}  fxg6 {[%clk 0:01:38]} 30. Nxb5 {[%clk 0:00:59]}  Rxf2 {[%clk 0:01:36]} 31. Nd4 {[%clk 0:00:59]}  Nd3 {[%clk 0:01:35]} 32. Nxe6 {[%clk 0:00:58]}  Ree2 {[%clk 0:01:32]} 33. Nac7 {[%clk 0:00:53]}  Rxg2+ {[%clk 0:01:28]} 34. Kh3 {[%clk 0:00:54]}  Rh2+ {[%clk 0:01:28]} 35. Kg4 {[%clk 0:00:54]}  Nxe5+ {[%clk 0:01:29]} 36. Kf4 {[%clk 0:00:53]}  Nd3+ {[%clk 0:01:29]} 37. Kf3 {[%clk 0:00:53]}  Rhf2+ {[%clk 0:01:28]} 38. Kg4 {[%clk 0:00:53]}  h5+ {[%clk 0:01:28]} 39. Kh4 {[%clk 0:00:50]}  Rh2+ {[%clk 0:01:27]} 40. Kg5 {[%clk 0:00:50]}  Re5# {[%clk 0:01:28]} 0-1


[Site "https://www.chess.com"]

[Event "Titled Tuesday Blitz December 06 Early 2022"]
[White "Bazarov, Konstantin"]
[Black "Tsatsalashvili, Keti"]
[WhiteFideId "4137000"]
[BlackFideId "13603434"]
[WhiteElo "2228"]
[BlackElo "2220"]
[Result "1/2-1/2"]
[Round "03"]
[TimeControl "180+1"]
[Date "2022.12.07"]
[WhiteClock "0:00:28"]
[BlackClock "0:00:31"]

1. Nf3 {[%clk 0:03:00]}  Nf6 {[%clk 0:02:59]} 2. c4 {[%clk 0:03:00]}  e6 {[%clk 0:02:59]} 3. Nc3 {[%clk 0:03:00]}  d5 {[%clk 0:02:59]} 4. d4 {[%clk 0:02:59]}  Bb4 {[%clk 0:02:55]} 5. Qa4+ {[%clk 0:02:57]}  Nc6 {[%clk 0:02:53]} 6. e3 {[%clk 0:02:57]}  O-O {[%clk 0:02:49]} 7. Bd2 {[%clk 0:02:55]}  Bd7 {[%clk 0:02:43]} 8. Qc2 {[%clk 0:02:49]}  Bxc3 {[%clk 0:02:41]} 9. Bxc3 {[%clk 0:02:48]}  Ne4 {[%clk 0:02:41]} 10. Bd3 {[%clk 0:02:46]}  Nxc3 {[%clk 0:02:32]} 11. bxc3 {[%clk 0:02:39]}  h6 {[%clk 0:02:28]} 12. Rb1 {[%clk 0:02:37]}  Na5 {[%clk 0:02:18]} 13. c5 {[%clk 0:02:33]}  b6 {[%clk 0:02:11]} 14. cxb6 {[%clk 0:02:24]}  axb6 {[%clk 0:02:09]} 15. O-O {[%clk 0:02:25]}  f6 {[%clk 0:01:48]} 16. Bh7+ {[%clk 0:02:22]}  Kh8 {[%clk 0:01:48]} 17. Bd3 {[%clk 0:02:16]}  Qe7 {[%clk 0:01:39]} 18. Nh4 {[%clk 0:02:14]}  Be8 {[%clk 0:01:39]} 19. Bg6 {[%clk 0:02:12]}  f5 {[%clk 0:01:28]} 20. g3 {[%clk 0:02:06]}  Nc4 {[%clk 0:01:21]} 21. Ra1 {[%clk 0:02:01]}  Ra3 {[%clk 0:01:18]} 22. Rfc1 {[%clk 0:01:59]}  Ba4 {[%clk 0:01:10]} 23. Qe2 {[%clk 0:01:56]}  Qg5 {[%clk 0:01:05]} 24. Bh5 {[%clk 0:01:42]}  Ra8 {[%clk 0:00:51]} 25. Bf7 {[%clk 0:01:30]}  Bd7 {[%clk 0:00:44]} 26. Ng6+ {[%clk 0:01:26]}  Kh7 {[%clk 0:00:44]} 27. Nf4 {[%clk 0:01:26]}  Qf6 {[%clk 0:00:37]} 28. Bg6+ {[%clk 0:01:22]}  Kh8 {[%clk 0:00:37]} 29. h4 {[%clk 0:01:12]}  Nd6 {[%clk 0:00:37]} 30. f3 {[%clk 0:01:03]}  Bb5 {[%clk 0:00:37]} 31. Qb2 {[%clk 0:00:59]}  Bc4 {[%clk 0:00:37]} 32. e4 {[%clk 0:00:50]}  fxe4 {[%clk 0:00:36]} 33. fxe4 {[%clk 0:00:49]}  Nxe4 {[%clk 0:00:34]} 34. Bxe4 {[%clk 0:00:47]}  dxe4 {[%clk 0:00:35]} 35. Qg2 {[%clk 0:00:45]}  Bd5 {[%clk 0:00:34]} 36. Qh3 {[%clk 0:00:39]}  Rxa2 {[%clk 0:00:34]} 37. Rxa2 {[%clk 0:00:38]}  Rxa2 {[%clk 0:00:34]} 38. Re1 {[%clk 0:00:38]}  e3 {[%clk 0:00:34]} 39. Rxe3 {[%clk 0:00:36]}  Ra1+ {[%clk 0:00:33]} 40. Kf2 {[%clk 0:00:35]}  Ra2+ {[%clk 0:00:34]} 41. Ke1 {[%clk 0:00:33]}  Ra1+ {[%clk 0:00:33]} 42. Kd2 {[%clk 0:00:31]}  Ra2+ {[%clk 0:00:33]} 43. Ke1 {[%clk 0:00:28]}  Ra1+ {[%clk 0:00:32]} 44. Ke2 {[%clk 0:00:28]}  Ra2+ {[%clk 0:00:31]} 45. Ke1 {[%clk 0:00:28]} 1/2-1/2


[Site "https://www.chess.com"]

[Event "Titled Tuesday Blitz December 06 Early 2022"]
[White "Belozerov, Andrei"]
[Black "Bychkov, Vladimir"]
[WhiteFideId "4120213"]
[BlackFideId "24151513"]
[WhiteElo "2360"]
[BlackElo "2197"]
[Result "1-0"]
[Round "03"]
[TimeControl "180+1"]
[Date "2022.12.07"]
[WhiteClock "0:00:32"]
[BlackClock "0:00:46"]

1. e4 {[%clk 0:03:00]}  c5 {[%clk 0:02:49]} 2. Nf3 {[%clk 0:02:59]}  Nc6 {[%clk 0:02:49]} 3. Bb5 {[%clk 0:02:59]}  g6 {[%clk 0:02:48]} 4. O-O {[%clk 0:02:58]}  Bg7 {[%clk 0:02:48]} 5. Re1 {[%clk 0:02:58]}  Nf6 {[%clk 0:02:45]} 6. e5 {[%clk 0:02:58]}  Nd5 {[%clk 0:02:45]} 7. Nc3 {[%clk 0:02:58]}  Nc7 {[%clk 0:02:45]} 8. Bxc6 {[%clk 0:02:58]}  dxc6 {[%clk 0:02:43]} 9. h3 {[%clk 0:02:58]}  O-O {[%clk 0:02:43]} 10. d3 {[%clk 0:02:55]}  b6 {[%clk 0:02:38]} 11. a4 {[%clk 0:02:50]}  Nd5 {[%clk 0:02:36]} 12. Ne4 {[%clk 0:02:36]}  Bf5 {[%clk 0:02:34]} 13. Ng3 {[%clk 0:02:35]}  Be6 {[%clk 0:02:32]} 14. Ng5 {[%clk 0:02:29]}  Qd7 {[%clk 0:02:30]} 15. Bd2 {[%clk 0:02:23]}  Rfd8 {[%clk 0:02:27]} 16. b3 {[%clk 0:02:21]}  a5 {[%clk 0:02:26]} 17. Qf3 {[%clk 0:02:11]}  Nb4 {[%clk 0:02:23]} 18. Bxb4 {[%clk 0:02:03]}  cxb4 {[%clk 0:02:21]} 19. Nxe6 {[%clk 0:01:52]}  Qxe6 {[%clk 0:02:19]} 20. Re4 {[%clk 0:01:52]}  b5 {[%clk 0:02:13]} 21. Qe2 {[%clk 0:01:42]}  Qd5 {[%clk 0:02:03]} 22. f4 {[%clk 0:01:39]}  f5 {[%clk 0:01:58]} 23. exf6 {[%clk 0:01:23]}  Bxf6 {[%clk 0:01:57]} 24. Rf1 {[%clk 0:01:16]}  bxa4 {[%clk 0:01:54]} 25. bxa4 {[%clk 0:01:15]}  b3 {[%clk 0:01:54]} 26. cxb3 {[%clk 0:01:15]}  Qxd3 {[%clk 0:01:54]} 27. Rf3 {[%clk 0:01:10]}  Qxe2 {[%clk 0:01:48]} 28. Rxe2 {[%clk 0:01:09]}  Rab8 {[%clk 0:01:47]} 29. Ne4 {[%clk 0:01:08]}  Rd1+ {[%clk 0:01:39]} 30. Kf2 {[%clk 0:01:08]}  Rb1 {[%clk 0:01:39]} 31. Nxf6+ {[%clk 0:01:00]}  exf6 {[%clk 0:01:38]} 32. Re6 {[%clk 0:01:01]}  R1xb3 {[%clk 0:01:36]} 33. Rxf6 {[%clk 0:00:57]}  Rxf3+ {[%clk 0:01:34]} 34. Kxf3 {[%clk 0:00:57]}  Rb4 {[%clk 0:01:34]} 35. Rxc6 {[%clk 0:00:55]}  Rxa4 {[%clk 0:01:33]} 36. Ra6 {[%clk 0:00:53]}  Ra1 {[%clk 0:01:28]} 37. Kg4 {[%clk 0:00:49]}  a4 {[%clk 0:01:19]} 38. Kg5 {[%clk 0:00:47]}  Kf7 {[%clk 0:01:06]} 39. Ra7+ {[%clk 0:00:47]}  Ke6 {[%clk 0:00:59]} 40. Rxh7 {[%clk 0:00:46]}  a3 {[%clk 0:00:59]} 41. Ra7 {[%clk 0:00:45]}  a2 {[%clk 0:00:59]} 42. g4 {[%clk 0:00:45]}  Kd5 {[%clk 0:00:56]} 43. Ra4 {[%clk 0:00:40]}  Kc5 {[%clk 0:00:54]} 44. h4 {[%clk 0:00:40]}  Kb5 {[%clk 0:00:55]} 45. Ra8 {[%clk 0:00:39]}  Kb4 {[%clk 0:00:55]} 46. Kxg6 {[%clk 0:00:37]}  Rg1 {[%clk 0:00:55]} 47. Rxa2 {[%clk 0:00:36]}  Rxg4+ {[%clk 0:00:55]} 48. Kf5 {[%clk 0:00:34]}  Rxh4 {[%clk 0:00:55]} 49. Rc2 {[%clk 0:00:35]}  Rh8 {[%clk 0:00:53]} 50. Ke6 {[%clk 0:00:33]}  Re8+ {[%clk 0:00:46]} 51. Kf7 {[%clk 0:00:32]} 1-0


[Site "https://www.chess.com"]